[Event "*** SCC Grand Prix: Titled Tuesday Blitz"]
[Site "Chess.com"]
[Date "2020.09.29"]
[Round "7"]
[White "Chamal_Gedgafov"]
[Black "Trickov"]
[Result "0-1"]
[WhiteElo "2141"]
[BlackElo "2355"]
[TimeControl "180+1"]
[EndTime "11:11:17 PDT"]
[Termination "Trickov won by resignation"]

1. d4 {[%clk 0:03:00.9]} 1... d5 {[%clk 0:02:58.4]} 2. c4 {[%clk 0:03:01]} 2...
c6 {[%clk 0:02:57.2]} 3. Nc3 {[%clk 0:03:00.9]} 3... Nf6 {[%clk 0:02:56.8]} 4.
Nf3 {[%clk 0:03:00.9]} 4... dxc4 {[%clk 0:02:56.1]} 5. e4 {[%clk 0:03:00.3]}
5... b5 {[%clk 0:02:55.4]} 6. e5 {[%clk 0:03:00.5]} 6... Nd5 {[%clk 0:02:55]} 7.
a4 {[%clk 0:03:00.9]} 7... e6 {[%clk 0:02:55]} 8. axb5 {[%clk 0:03:00.3]} 8...
Nxc3 {[%clk 0:02:55.1]} 9. bxc3 {[%clk 0:03:01.2]} 9... cxb5 {[%clk 0:02:55.5]}
10. Ng5 {[%clk 0:03:01.5]} 10... Bb7 {[%clk 0:02:54.7]} 11. Qh5 {[%clk
0:03:00.9]} 11... Qd7 {[%clk 0:02:52.6]} 12. Be2 {[%clk 0:02:36.1]} 12... g6
{[%clk 0:02:31.2]} 13. Qg4 {[%clk 0:02:34.6]} 13... Be7 {[%clk 0:02:23.5]} 14.
Bf3 {[%clk 0:02:28.3]} 14... Bd5 {[%clk 0:02:20]} 15. Ra6 {[%clk 0:02:06]} 15...
Nxa6 {[%clk 0:02:14.6]} 0-1

[Event "*** SCC Grand Prix: Titled Tuesday Blitz"]
[Site "Chess.com"]
[Date "2020.09.29"]
[Round "7"]
[White "LogoCzar"]
[Black "dodorox"]
[Result "1-0"]
[WhiteElo "2430"]
[BlackElo "2048"]
[TimeControl "180+1"]
[EndTime "11:11:22 PDT"]
[Termination "LogoCzar won by resignation"]

1. e4 {[%clk 0:03:00.9]} 1... e6 {[%clk 0:02:59.1]} 2. d4 {[%clk 0:03:00.6]}
2... d5 {[%clk 0:02:59.2]} 3. Nc3 {[%clk 0:03:00.6]} 3... Nf6 {[%clk 0:02:58.4]}
4. e5 {[%clk 0:03:00.9]} 4... Nfd7 {[%clk 0:02:58.1]} 5. f4 {[%clk 0:03:01.1]}
5... c5 {[%clk 0:02:57.9]} 6. Nf3 {[%clk 0:03:01.4]} 6... Nc6 {[%clk 0:02:57.2]}
7. Be3 {[%clk 0:03:01.6]} 7... Qb6 {[%clk 0:02:57]} 8. Na4 {[%clk 0:03:01.3]}
8... Qa5+ {[%clk 0:02:57]} 9. c3 {[%clk 0:03:01.8]} 9... c4 {[%clk 0:02:56.3]}
10. b4 {[%clk 0:03:01.8]} 10... Nxb4 {[%clk 0:02:53.2]} 11. cxb4 {[%clk
0:03:01.6]} 11... Bxb4+ {[%clk 0:02:53.5]} 12. Kf2 {[%clk 0:03:01.2]} 12... b5
{[%clk 0:02:46.7]} 13. Nb2 {[%clk 0:03:00.8]} 13... Nb8 {[%clk 0:02:39.4]} 14.
a4 {[%clk 0:02:57.5]} 14... Bc3 {[%clk 0:02:28.8]} 15. Bd2 {[%clk 0:02:44.4]}
15... Nc6 {[%clk 0:02:05.8]} 16. axb5 {[%clk 0:02:38.6]} 16... Qb4 {[%clk
0:01:54]} 17. Bxc3 {[%clk 0:02:38.4]} 17... Qxc3 {[%clk 0:01:51.5]} 18. Na4
{[%clk 0:02:35.1]} 1-0

[Event "*** SCC Grand Prix: Titled Tuesday Blitz"]
[Site "Chess.com"]
[Date "2020.09.29"]
[Round "7"]
[White "EvgenyRomanov"]
[Black "Supernotar"]
[Result "1/2-1/2"]
[WhiteElo "2610"]
[BlackElo "2788"]
[TimeControl "180+1"]
[EndTime "11:11:26 PDT"]
[Termination "Game drawn by repetition"]

1. b3 {[%clk 0:03:00.2]} 1... b6 {[%clk 0:03:00.1]} 2. Bb2 {[%clk 0:03:00.6]}
2... Bb7 {[%clk 0:03:00.6]} 3. Nf3 {[%clk 0:02:57.3]} 3... Nf6 {[%clk
0:03:00.8]} 4. g3 {[%clk 0:02:56.6]} 4... g6 {[%clk 0:02:59.7]} 5. Bg2 {[%clk
0:02:56.8]} 5... Bg7 {[%clk 0:03:00.1]} 6. O-O {[%clk 0:02:56.9]} 6... O-O
{[%clk 0:03:00.3]} 7. a4 {[%clk 0:02:57.3]} 7... a5 {[%clk 0:02:58.4]} 8. Na3
{[%clk 0:02:56.8]} 8... d6 {[%clk 0:02:56]} 9. Nc4 {[%clk 0:02:56]} 9... Nbd7
{[%clk 0:02:55.7]} 10. d4 {[%clk 0:02:54.6]} 10... e6 {[%clk 0:02:51.5]} 11. Re1
{[%clk 0:02:53.6]} 11... Qe7 {[%clk 0:02:51.5]} 12. Nh4 {[%clk 0:02:44.9]} 12...
Bxg2 {[%clk 0:02:50.4]} 13. Nxg2 {[%clk 0:02:45.8]} 13... Rfe8 {[%clk
0:02:47.5]} 14. Nf4 {[%clk 0:02:41]} 14... e5 {[%clk 0:02:38.7]} 15. dxe5 {[%clk
0:02:38]} 15... Nxe5 {[%clk 0:02:37.9]} 16. Nxe5 {[%clk 0:02:30.8]} 16... dxe5
{[%clk 0:02:37.9]} 17. Nd5 {[%clk 0:02:30.5]} 17... Nxd5 {[%clk 0:02:35.1]} 18.
Qxd5 {[%clk 0:02:31.4]} 18... Rad8 {[%clk 0:02:35.1]} 19. Qc4 {[%clk 0:02:31.1]}
19... e4 {[%clk 0:02:28.9]} 20. Bxg7 {[%clk 0:02:28.2]} 20... Kxg7 {[%clk
0:02:29.8]} 21. Rad1 {[%clk 0:02:26]} 21... f5 {[%clk 0:02:26.9]} 22. Rd4 {[%clk
0:02:23.8]} 22... Rxd4 {[%clk 0:02:23.7]} 23. Qxd4+ {[%clk 0:02:23.1]} 23... Qf6
{[%clk 0:02:18.4]} 24. Qc4 {[%clk 0:02:20.6]} 24... Qd6 {[%clk 0:02:15.1]} 25.
Qc3+ {[%clk 0:02:18.4]} 25... Kf7 {[%clk 0:02:13]} 26. Qc4+ {[%clk 0:02:13.7]}
26... Kg7 {[%clk 0:02:13]} 27. Qc3+ {[%clk 0:02:13.2]} 27... Kf7 {[%clk
0:02:12.3]} 28. Qc4+ {[%clk 0:02:11.3]} 28... Kg7 {[%clk 0:02:12.3]} 1/2-1/2

[Event "*** SCC Grand Prix: Titled Tuesday Blitz"]
[Site "Chess.com"]
[Date "2020.09.29"]
[Round "7"]
[White "pedro_nascimento85"]
[Black "rugbyclub"]
[Result "0-1"]
[WhiteElo "2000"]
[BlackElo "2165"]
[TimeControl "180+1"]
[EndTime "11:11:51 PDT"]
[Termination "rugbyclub won by checkmate"]

1. d4 {[%clk 0:03:00.9]} 1... d5 {[%clk 0:02:55.6]} 2. c4 {[%clk 0:03:00.2]}
2... e6 {[%clk 0:02:55]} 3. Nc3 {[%clk 0:02:59.5]} 3... a6 {[%clk 0:02:53.4]} 4.
cxd5 {[%clk 0:02:57.4]} 4... exd5 {[%clk 0:02:52.9]} 5. a3 {[%clk 0:02:53.6]}
5... Be6 {[%clk 0:02:48.1]} 6. Bf4 {[%clk 0:02:50]} 6... Bd6 {[%clk 0:02:46.2]}
7. Bxd6 {[%clk 0:02:47.5]} 7... Qxd6 {[%clk 0:02:46.4]} 8. e3 {[%clk 0:02:47.1]}
8... Nf6 {[%clk 0:02:46.3]} 9. Bd3 {[%clk 0:02:46.6]} 9... Nbd7 {[%clk
0:02:46.1]} 10. Nge2 {[%clk 0:02:45.5]} 10... O-O {[%clk 0:02:46.4]} 11. O-O
{[%clk 0:02:45.2]} 11... c5 {[%clk 0:02:46.9]} 12. Rc1 {[%clk 0:02:40.9]} 12...
c4 {[%clk 0:02:43.4]} 13. Bb1 {[%clk 0:02:40]} 13... b5 {[%clk 0:02:43.8]} 14.
f3 {[%clk 0:02:23]} 14... Rab8 {[%clk 0:02:43.2]} 15. e4 {[%clk 0:00:55]} 15...
dxe4 {[%clk 0:02:39]} 16. fxe4 {[%clk 0:00:55.9]} 16... Ng4 {[%clk 0:02:38.7]}
17. Qd2 {[%clk 0:00:54.2]} 17... Qxh2# {[%clk 0:02:37.3]} 0-1

[Event "*** SCC Grand Prix: Titled Tuesday Blitz"]
[Site "Chess.com"]
[Date "2020.09.29"]
[Round "7"]
[White "Artem_Sadovsky"]
[Black "GmSergioBarrientos"]
[Result "0-1"]
[WhiteElo "2524"]
[BlackElo "2695"]
[TimeControl "180+1"]
[EndTime "11:12:05 PDT"]
[Termination "GmSergioBarrientos won by resignation"]

1. Nf3 {[%clk 0:03:00.2]} 1... Nf6 {[%clk 0:02:59.4]} 2. c4 {[%clk 0:02:58.9]}
2... e6 {[%clk 0:02:59.1]} 3. b3 {[%clk 0:02:58.3]} 3... d5 {[%clk 0:02:56.6]}
4. Bb2 {[%clk 0:02:58.1]} 4... Be7 {[%clk 0:02:55.1]} 5. e3 {[%clk 0:02:56.6]}
5... O-O {[%clk 0:02:54.9]} 6. Be2 {[%clk 0:02:57.1]} 6... b6 {[%clk 0:02:54.5]}
7. O-O {[%clk 0:02:57.6]} 7... Bb7 {[%clk 0:02:54.5]} 8. d4 {[%clk 0:02:56.7]}
8... dxc4 {[%clk 0:02:52.2]} 9. bxc4 {[%clk 0:02:56.3]} 9... Nbd7 {[%clk
0:02:53.1]} 10. Nc3 {[%clk 0:02:54.3]} 10... c5 {[%clk 0:02:53.1]} 11. d5 {[%clk
0:02:54.3]} 11... exd5 {[%clk 0:02:52.1]} 12. cxd5 {[%clk 0:02:54.1]} 12... Bd6
{[%clk 0:02:51]} 13. e4 {[%clk 0:02:26.8]} 13... Re8 {[%clk 0:02:50.2]} 14. Bd3
{[%clk 0:02:26.2]} 14... a6 {[%clk 0:02:48.3]} 15. a4 {[%clk 0:02:25.6]} 15...
Ne5 {[%clk 0:02:42.8]} 16. Nxe5 {[%clk 0:02:19.8]} 16... Bxe5 {[%clk 0:02:43.7]}
17. h3 {[%clk 0:02:07]} 17... Bxc3 {[%clk 0:02:30]} 18. Bxc3 {[%clk 0:02:04.5]}
18... Nxe4 {[%clk 0:02:30.2]} 19. Bxe4 {[%clk 0:01:33.8]} 19... Rxe4 {[%clk
0:02:31.1]} 20. d6 {[%clk 0:01:15.4]} 20... Re6 {[%clk 0:02:25.1]} 21. Qg4
{[%clk 0:01:12.9]} 21... Rg6 {[%clk 0:02:23.5]} 0-1

[Event "*** SCC Grand Prix: Titled Tuesday Blitz"]
[Site "Chess.com"]
[Date "2020.09.29"]
[Round "7"]
[White "ChrisTool2"]
[Black "lucasmito"]
[Result "1-0"]
[WhiteElo "2351"]
[BlackElo "2453"]
[TimeControl "180+1"]
[EndTime "11:12:17 PDT"]
[Termination "ChrisTool2 won by checkmate"]

1. d4 {[%clk 0:03:00.9]} 1... d5 {[%clk 0:02:59.5]} 2. c4 {[%clk 0:02:59.7]}
2... dxc4 {[%clk 0:03:00.4]} 3. e3 {[%clk 0:02:59.2]} 3... Nf6 {[%clk
0:03:01.3]} 4. Bxc4 {[%clk 0:02:58.7]} 4... e5 {[%clk 0:03:02.2]} 5. Nf3 {[%clk
0:02:54]} 5... exd4 {[%clk 0:03:03.1]} 6. Qxd4 {[%clk 0:02:50.5]} 6... Bd6
{[%clk 0:03:02.6]} 7. O-O {[%clk 0:02:36.7]} 7... O-O {[%clk 0:03:01.6]} 8. Nc3
{[%clk 0:02:34.8]} 8... Nc6 {[%clk 0:03:00.4]} 9. Qh4 {[%clk 0:02:32.9]} 9...
Qe7 {[%clk 0:03:00.3]} 10. b3 {[%clk 0:02:28]} 10... Ne5 {[%clk 0:03:00]} 11.
Nxe5 {[%clk 0:02:11.8]} 11... Qxe5 {[%clk 0:02:59]} 12. Bb2 {[%clk 0:02:11.4]}
12... g5 {[%clk 0:02:58.8]} 13. Qg3 {[%clk 0:01:57.2]} 13... Qf5 {[%clk
0:02:55]} 14. f4 {[%clk 0:01:49.6]} 14... h6 {[%clk 0:02:48.2]} 15. e4 {[%clk
0:01:45.5]} 15... Nxe4 {[%clk 0:02:41.6]} 16. Nxe4 {[%clk 0:01:44.6]} 16... Qxe4
{[%clk 0:02:42.5]} 17. Qc3 {[%clk 0:01:35.8]} 17... Qh7 {[%clk 0:02:34.9]} 18.
Bd3 {[%clk 0:01:13.3]} 18... f5 {[%clk 0:02:17.5]} 19. Bc4+ {[%clk 0:01:12.7]}
19... Rf7 {[%clk 0:02:18.4]} 20. Qf6 {[%clk 0:01:02.9]} 20... Kf8 {[%clk
0:02:12.6]} 21. Qd8# {[%clk 0:00:59.1]} 1-0

[Event "*** SCC Grand Prix: Titled Tuesday Blitz"]
[Site "Chess.com"]
[Date "2020.09.29"]
[Round "7"]
[White "KyrgyzFighter"]
[Black "Fh2411"]
[Result "0-1"]
[WhiteElo "2369"]
[BlackElo "2527"]
[TimeControl "180+1"]
[EndTime "11:12:29 PDT"]
[Termination "Fh2411 won by resignation"]

1. c4 {[%clk 0:02:11]} 1... c6 {[%clk 0:02:52.4]} 2. Nc3 {[%clk 0:02:10.8]} 2...
d5 {[%clk 0:02:52.7]} 3. d4 {[%clk 0:02:11.4]} 3... Nf6 {[%clk 0:02:52.3]} 4.
cxd5 {[%clk 0:02:10.7]} 4... cxd5 {[%clk 0:02:53.2]} 5. Bf4 {[%clk 0:02:09.3]}
5... Nc6 {[%clk 0:02:50.4]} 6. e3 {[%clk 0:02:09.2]} 6... Bf5 {[%clk 0:02:51]}
7. Nf3 {[%clk 0:02:06.1]} 7... e6 {[%clk 0:02:51]} 8. Bd3 {[%clk 0:02:04.2]}
8... Bxd3 {[%clk 0:02:49.6]} 9. Qxd3 {[%clk 0:02:05.1]} 9... Be7 {[%clk
0:02:50.2]} 10. O-O {[%clk 0:02:01.5]} 10... O-O {[%clk 0:02:50.7]} 11. Rac1
{[%clk 0:01:56.2]} 11... Rc8 {[%clk 0:02:49.1]} 12. a3 {[%clk 0:01:56.5]} 12...
Nd7 {[%clk 0:02:28.7]} 13. b4 {[%clk 0:01:55]} 13... Nb6 {[%clk 0:02:28.2]} 14.
Ne2 {[%clk 0:01:42.3]} 14... Nc4 {[%clk 0:02:18.7]} 15. e4 {[%clk 0:01:35.4]}
15... b5 {[%clk 0:02:17.5]} 16. exd5 {[%clk 0:01:34.6]} 16... exd5 {[%clk
0:02:08.4]} 17. Ng3 {[%clk 0:01:34.4]} 17... g6 {[%clk 0:01:59.1]} 18. Rfe1
{[%clk 0:01:30.1]} 18... a6 {[%clk 0:01:58.7]} 19. Ne5 {[%clk 0:01:29.5]} 19...
Bf6 {[%clk 0:01:54.5]} 20. Nxc6 {[%clk 0:01:25.8]} 20... Rxc6 {[%clk 0:01:55.4]}
21. Be5 {[%clk 0:01:21.3]} 21... Bg7 {[%clk 0:01:52.2]} 22. f4 {[%clk
0:01:18.3]} 22... f6 {[%clk 0:01:50.4]} 0-1

[Event "*** SCC Grand Prix: Titled Tuesday Blitz"]
[Site "Chess.com"]
[Date "2020.09.29"]
[Round "7"]
[White "DonPreuss"]
[Black "manuellarrea"]
[Result "1-0"]
[WhiteElo "2247"]
[BlackElo "2100"]
[TimeControl "180+1"]
[EndTime "11:12:30 PDT"]
[Termination "DonPreuss won by resignation"]

1. d4 {[%clk 0:02:58.6]} 1... Nf6 {[%clk 0:02:59.5]} 2. Nc3 {[%clk 0:02:58.3]}
2... e6 {[%clk 0:02:57.3]} 3. e4 {[%clk 0:02:58.8]} 3... d5 {[%clk 0:02:55.2]}
4. exd5 {[%clk 0:02:58.6]} 4... exd5 {[%clk 0:02:51.5]} 5. Bd3 {[%clk
0:02:59.5]} 5... c6 {[%clk 0:02:50.2]} 6. Nge2 {[%clk 0:03:00]} 6... Be7 {[%clk
0:02:49.3]} 7. O-O {[%clk 0:03:00.4]} 7... O-O {[%clk 0:02:48.4]} 8. Ng3 {[%clk
0:03:00]} 8... g6 {[%clk 0:02:45.1]} 9. Bh6 {[%clk 0:02:59]} 9... Re8 {[%clk
0:02:44.4]} 10. Qd2 {[%clk 0:02:56.3]} 10... Nbd7 {[%clk 0:02:42.4]} 11. Rae1
{[%clk 0:02:50.9]} 11... Nf8 {[%clk 0:02:39.8]} 12. f4 {[%clk 0:02:39.2]} 12...
Ne6 {[%clk 0:02:33.5]} 13. f5 {[%clk 0:02:38.6]} 13... Nxd4 {[%clk 0:02:31.9]}
14. fxg6 {[%clk 0:02:36.8]} 14... hxg6 {[%clk 0:02:26.9]} 15. Rxe7 {[%clk
0:02:10.1]} 15... Qxe7 {[%clk 0:02:19.3]} 16. Bg5 {[%clk 0:02:09.6]} 16... Nf5
{[%clk 0:02:15.2]} 17. Nxf5 {[%clk 0:02:08.9]} 17... Bxf5 {[%clk 0:02:11.5]} 18.
Bxf5 {[%clk 0:02:07.7]} 18... gxf5 {[%clk 0:02:09.8]} 19. Rxf5 {[%clk
0:02:06.7]} 19... Qc5+ {[%clk 0:02:00.6]} 20. Kf1 {[%clk 0:01:56.6]} 20... Ne4
{[%clk 0:01:55.9]} 21. Nxe4 {[%clk 0:01:55.8]} 21... Rxe4 {[%clk 0:01:55.1]} 22.
Bf6 {[%clk 0:01:45.2]} 22... Qe3 {[%clk 0:01:50.7]} 23. Qxe3 {[%clk 0:01:36.4]}
23... Rxe3 {[%clk 0:01:50]} 24. Rh5 {[%clk 0:01:33.9]} 1-0

[Event "*** SCC Grand Prix: Titled Tuesday Blitz"]
[Site "Chess.com"]
[Date "2020.09.29"]
[Round "7"]
[White "Gulkov_Igor"]
[Black "salomez"]
[Result "1-0"]
[WhiteElo "2440"]
[BlackElo "2248"]
[TimeControl "180+1"]
[EndTime "11:12:33 PDT"]
[Termination "Gulkov_Igor won by resignation"]

1. Nf3 {[%clk 0:03:00.9]} 1... Nf6 {[%clk 0:02:58.1]} 2. c4 {[%clk 0:03:00.4]}
2... g6 {[%clk 0:02:57]} 3. Nc3 {[%clk 0:03:00.5]} 3... d5 {[%clk 0:02:54.6]} 4.
cxd5 {[%clk 0:02:59.1]} 4... Nxd5 {[%clk 0:02:53.5]} 5. e4 {[%clk 0:02:59.2]}
5... Nxc3 {[%clk 0:02:53.7]} 6. dxc3 {[%clk 0:02:59.4]} 6... Qxd1+ {[%clk
0:02:53.8]} 7. Kxd1 {[%clk 0:02:59.6]} 7... f6 {[%clk 0:02:47.8]} 8. Bc4 {[%clk
0:02:56.7]} 8... e5 {[%clk 0:02:47]} 9. Kc2 {[%clk 0:02:56.2]} 9... Bd6 {[%clk
0:02:22]} 10. Be3 {[%clk 0:02:54.3]} 10... Ke7 {[%clk 0:02:21.4]} 11. Nd2 {[%clk
0:02:52.4]} 11... Be6 {[%clk 0:02:16.5]} 12. a4 {[%clk 0:02:51.6]} 12... Nd7
{[%clk 0:02:15.6]} 13. b4 {[%clk 0:02:48.3]} 13... a5 {[%clk 0:01:36.9]} 14. Kb3
{[%clk 0:02:41.8]} 14... Rhd8 {[%clk 0:01:03.6]} 15. Bxe6 {[%clk 0:02:40.8]}
15... Kxe6 {[%clk 0:01:03.5]} 16. Nc4 {[%clk 0:02:39.3]} 16... Be7 {[%clk
0:00:48.1]} 17. Nxa5 {[%clk 0:02:36.1]} 17... Nc5+ {[%clk 0:00:39.8]} 18. Bxc5
{[%clk 0:02:30.3]} 18... Bxc5 {[%clk 0:00:38.2]} 19. Nxb7 {[%clk 0:02:28.1]} 1-0

[Event "*** SCC Grand Prix: Titled Tuesday Blitz"]
[Site "Chess.com"]
[Date "2020.09.29"]
[Round "7"]
[White "kleopl"]
[Black "Evgeny81"]
[Result "0-1"]
[WhiteElo "2468"]
[BlackElo "2666"]
[TimeControl "180+1"]
[EndTime "11:12:41 PDT"]
[Termination "Evgeny81 won by resignation"]

1. c4 {[%clk 0:03:00.9]} 1... f5 {[%clk 0:02:58.4]} 2. Nc3 {[%clk 0:02:58.7]}
2... Nf6 {[%clk 0:02:58.6]} 3. g3 {[%clk 0:02:58.4]} 3... e5 {[%clk 0:02:58.7]}
4. Bg2 {[%clk 0:02:56.2]} 4... g6 {[%clk 0:02:59]} 5. e3 {[%clk 0:02:56.2]} 5...
Bg7 {[%clk 0:02:59.3]} 6. Nge2 {[%clk 0:02:56.6]} 6... O-O {[%clk 0:02:59.4]} 7.
O-O {[%clk 0:02:57]} 7... d6 {[%clk 0:02:59.1]} 8. Rb1 {[%clk 0:02:57.3]} 8...
a5 {[%clk 0:02:58.2]} 9. a3 {[%clk 0:02:57.4]} 9... Nc6 {[%clk 0:02:53.8]} 10.
b4 {[%clk 0:02:57.4]} 10... axb4 {[%clk 0:02:54.7]} 11. axb4 {[%clk 0:02:58]}
11... Kh8 {[%clk 0:02:54.7]} 12. b5 {[%clk 0:02:57.5]} 12... Ne7 {[%clk
0:02:55]} 13. d4 {[%clk 0:02:53.4]} 13... e4 {[%clk 0:02:53.3]} 14. c5 {[%clk
0:02:49.9]} 14... d5 {[%clk 0:02:53]} 15. h4 {[%clk 0:02:47.3]} 15... h6 {[%clk
0:02:50.1]} 16. Bb2 {[%clk 0:02:45.4]} 16... g5 {[%clk 0:02:49.5]} 17. hxg5
{[%clk 0:02:44.9]} 17... hxg5 {[%clk 0:02:50.4]} 18. f3 {[%clk 0:02:31.4]} 18...
Qe8 {[%clk 0:02:43.9]} 19. fxe4 {[%clk 0:02:27.1]} 19... fxe4 {[%clk 0:02:44.8]}
20. Nc1 {[%clk 0:02:23.6]} 20... Bg4 {[%clk 0:02:34.1]} 21. Qd2 {[%clk
0:02:23.7]} 21... Qh5 {[%clk 0:02:33.7]} 22. Nb3 {[%clk 0:02:17]} 22... Bf3
{[%clk 0:02:30.9]} 23. Bxf3 {[%clk 0:02:13.5]} 23... exf3 {[%clk 0:02:30.9]} 24.
Rf2 {[%clk 0:01:56]} 24... Ng4 {[%clk 0:02:27.8]} 25. Rbf1 {[%clk 0:01:56.1]}
25... Nxf2 {[%clk 0:02:14.1]} 26. Rxf2 {[%clk 0:01:57]} 26... Kg8 {[%clk
0:02:06.6]} 27. e4 {[%clk 0:01:50.3]} 27... Qg4 {[%clk 0:01:49.6]} 28. Kh2
{[%clk 0:01:36.2]} 28... Rf6 {[%clk 0:01:45.9]} 0-1

[Event "*** SCC Grand Prix: Titled Tuesday Blitz"]
[Site "Chess.com"]
[Date "2020.09.29"]
[Round "7"]
[White "Lion-Al-Messi"]
[Black "AniJak"]
[Result "1-0"]
[WhiteElo "2532"]
[BlackElo "2376"]
[TimeControl "180+1"]
[EndTime "11:12:42 PDT"]
[Termination "Lion-Al-Messi won by checkmate"]

1. e4 {[%clk 0:03:00.9]} 1... c6 {[%clk 0:03:00]} 2. Nf3 {[%clk 0:03:01]} 2...
d5 {[%clk 0:03:00.3]} 3. Nc3 {[%clk 0:03:01.9]} 3... Bg4 {[%clk 0:03:00.4]} 4.
h3 {[%clk 0:03:01.9]} 4... Bxf3 {[%clk 0:03:00.5]} 5. Qxf3 {[%clk 0:03:02.8]}
5... Nf6 {[%clk 0:03:00.7]} 6. d3 {[%clk 0:03:03.4]} 6... e6 {[%clk 0:03:00.8]}
7. Bd2 {[%clk 0:03:03.6]} 7... Bb4 {[%clk 0:02:55.6]} 8. g4 {[%clk 0:03:03.2]}
8... Qb6 {[%clk 0:02:52.6]} 9. g5 {[%clk 0:03:02.5]} 9... Nfd7 {[%clk
0:02:51.8]} 10. a3 {[%clk 0:03:00.5]} 10... Bxc3 {[%clk 0:02:50.6]} 11. Bxc3
{[%clk 0:03:01.4]} 11... d4 {[%clk 0:02:50.6]} 12. Bd2 {[%clk 0:03:01.2]} 12...
Qxb2 {[%clk 0:02:49.7]} 13. Qd1 {[%clk 0:03:01.4]} 13... Qb6 {[%clk 0:02:43.2]}
14. Bg2 {[%clk 0:03:01.5]} 14... O-O {[%clk 0:02:38.2]} 15. O-O {[%clk
0:03:00.9]} 15... e5 {[%clk 0:02:36.6]} 16. Rb1 {[%clk 0:03:00.1]} 16... Qc7
{[%clk 0:02:35.4]} 17. f4 {[%clk 0:03:01]} 17... exf4 {[%clk 0:02:31.1]} 18.
Bxf4 {[%clk 0:03:01.9]} 18... Qc8 {[%clk 0:02:31.5]} 19. h4 {[%clk 0:02:59.8]}
19... Nc5 {[%clk 0:02:30.2]} 20. h5 {[%clk 0:02:57.3]} 20... Ne6 {[%clk
0:02:29.1]} 21. Bd2 {[%clk 0:02:57.3]} 21... Nd7 {[%clk 0:02:14.8]} 22. h6
{[%clk 0:02:56.7]} 22... g6 {[%clk 0:02:11.7]} 23. Bh3 {[%clk 0:02:56.4]} 23...
Qc7 {[%clk 0:02:07.3]} 24. Qg4 {[%clk 0:02:55.5]} 24... Rae8 {[%clk 0:01:55.4]}
25. Rf2 {[%clk 0:02:53.4]} 25... f6 {[%clk 0:01:37.6]} 26. Rbf1 {[%clk
0:02:45.7]} 26... fxg5 {[%clk 0:01:24.7]} 27. Qxe6+ {[%clk 0:02:45.7]} 27...
Rxe6 {[%clk 0:01:22.4]} 28. Bxe6+ {[%clk 0:02:46.6]} 28... Rf7 {[%clk
0:01:16.1]} 29. Rxf7 {[%clk 0:02:46.3]} 29... Qg3+ {[%clk 0:01:14.8]} 30. Kh1
{[%clk 0:02:46.6]} 30... Qh4+ {[%clk 0:00:35.7]} 31. Kg2 {[%clk 0:02:46.6]}
31... Qxh6 {[%clk 0:00:35.9]} 32. Rf8+ {[%clk 0:02:45.2]} 32... Kg7 {[%clk
0:00:32.4]} 33. R1f7# {[%clk 0:02:46.1]} 1-0

[Event "*** SCC Grand Prix: Titled Tuesday Blitz"]
[Site "Chess.com"]
[Date "2020.09.29"]
[Round "7"]
[White "Fy_Rakotomaharo"]
[Black "FontVella8"]
[Result "1-0"]
[WhiteElo "2674"]
[BlackElo "2484"]
[TimeControl "180+1"]
[EndTime "11:12:46 PDT"]
[Termination "Fy_Rakotomaharo won by resignation"]

1. e4 {[%clk 0:03:00.9]} 1... c6 {[%clk 0:03:00]} 2. Nf3 {[%clk 0:03:01]} 2...
d5 {[%clk 0:03:00.6]} 3. d3 {[%clk 0:03:01.9]} 3... g6 {[%clk 0:02:59.9]} 4. e5
{[%clk 0:03:01.6]} 4... Bg7 {[%clk 0:02:59.9]} 5. d4 {[%clk 0:03:02.1]} 5... c5
{[%clk 0:02:57.3]} 6. dxc5 {[%clk 0:03:03]} 6... Nc6 {[%clk 0:02:57.3]} 7. Bb5
{[%clk 0:03:02.3]} 7... e6 {[%clk 0:02:53.2]} 8. Bxc6+ {[%clk 0:02:59.4]} 8...
bxc6 {[%clk 0:02:53]} 9. O-O {[%clk 0:02:57.4]} 9... Ne7 {[%clk 0:02:51.3]} 10.
c3 {[%clk 0:02:53.7]} 10... O-O {[%clk 0:02:51.4]} 11. Nbd2 {[%clk 0:02:46.1]}
11... a5 {[%clk 0:02:51.3]} 12. a4 {[%clk 0:02:44.9]} 12... Ba6 {[%clk 0:02:51]}
13. Re1 {[%clk 0:02:45.2]} 13... Rb8 {[%clk 0:02:51.5]} 14. b3 {[%clk
0:02:35.4]} 14... Nf5 {[%clk 0:02:50.9]} 15. Nd4 {[%clk 0:02:28.5]} 15... Qc7
{[%clk 0:02:43]} 16. N2f3 {[%clk 0:02:09.8]} 16... Rb7 {[%clk 0:02:42.9]} 17.
Nxf5 {[%clk 0:02:05.2]} 17... exf5 {[%clk 0:02:41.3]} 18. Bf4 {[%clk 0:02:05.7]}
18... Re8 {[%clk 0:02:32.7]} 19. h4 {[%clk 0:02:02.6]} 19... Qd7 {[%clk
0:02:24.8]} 20. Rb1 {[%clk 0:01:59.1]} 20... h6 {[%clk 0:02:22.3]} 21. Qd2
{[%clk 0:01:57.4]} 21... Kh7 {[%clk 0:02:22.5]} 22. Nd4 {[%clk 0:01:57.5]} 22...
Ra7 {[%clk 0:01:45.5]} 23. b4 {[%clk 0:01:55.5]} 23... Bc4 {[%clk 0:01:45.2]}
24. b5 {[%clk 0:01:54.3]} 24... cxb5 {[%clk 0:01:45.1]} 25. axb5 {[%clk
0:01:50]} 25... Rc8 {[%clk 0:01:36.8]} 26. c6 {[%clk 0:01:46.9]} 26... Qe8
{[%clk 0:01:37.1]} 27. b6 {[%clk 0:01:46.8]} 27... Re7 {[%clk 0:01:37.4]} 28. b7
{[%clk 0:01:44.6]} 28... Rb8 {[%clk 0:01:36]} 29. e6 {[%clk 0:01:45]} 29... fxe6
{[%clk 0:01:36.1]} 30. Bxb8 {[%clk 0:01:43.1]} 30... Qxb8 {[%clk 0:01:36.2]} 31.
Nxe6 {[%clk 0:01:40.5]} 1-0